[Event "*** Titled Tuesday Blitz"]
[Site "Chess.com"]
[Date "2020.03.03"]
[Round "1"]
[White "ChessicallyInclined"]
[Black "Fandorine"]
[Result "0-1"]
[WhiteElo "2481"]
[BlackElo "2897"]
[TimeControl "180+1"]
[EndTime "13:02:34 PST"]
[Termination "Fandorine won by resignation"]

1. d4 {[%clk 0:03:00.8]} 1... Nf6 {[%clk 0:02:58]} 2. c4 {[%clk 0:03:01]} 2...
g6 {[%clk 0:02:58.2]} 3. Nc3 {[%clk 0:03:01.2]} 3... Bg7 {[%clk 0:02:58.9]} 4.
e4 {[%clk 0:03:01.4]} 4... d6 {[%clk 0:02:59.5]} 5. f3 {[%clk 0:03:01.7]} 5...
O-O {[%clk 0:02:59.8]} 6. Be3 {[%clk 0:03:02.1]} 6... a6 {[%clk 0:03:00.3]} 7.
Nge2 {[%clk 0:03:02.2]} 7... b5 {[%clk 0:02:59.6]} 8. cxb5 {[%clk 0:03:00.7]}
8... axb5 {[%clk 0:03:00.5]} 9. Nxb5 {[%clk 0:03:01.6]} 9... c6 {[%clk
0:03:01.1]} 10. Nbc3 {[%clk 0:03:01.5]} 10... Nbd7 {[%clk 0:03:01.8]} 11. Ng3
{[%clk 0:02:58.9]} 11... h5 {[%clk 0:02:58.6]} 12. Be2 {[%clk 0:02:58]} 12... h4
{[%clk 0:02:56.1]} 13. Nf1 {[%clk 0:02:58.2]} 13... e5 {[%clk 0:02:56.6]} 14.
dxe5 {[%clk 0:02:56.2]} 14... Nxe5 {[%clk 0:02:56.2]} 15. Nd2 {[%clk 0:02:55]}
15... d5 {[%clk 0:02:54.1]} 16. exd5 {[%clk 0:02:52.2]} 16... Nxd5 {[%clk
0:02:50.2]} 17. Nxd5 {[%clk 0:02:51.7]} 17... cxd5 {[%clk 0:02:50.6]} 18. Nb3
{[%clk 0:02:49.3]} 18... h3 {[%clk 0:02:48.8]} 19. g3 {[%clk 0:02:43.3]} 19...
Nc4 {[%clk 0:02:48.2]} 20. Bd4 {[%clk 0:02:39.8]} 20... Nxb2 {[%clk 0:02:39.6]}
21. Qd2 {[%clk 0:02:07]} 21... Nc4 {[%clk 0:02:33.6]} 22. Bd3 {[%clk 0:01:48.8]}
0-1

[Event "*** Titled Tuesday Blitz"]
[Site "Chess.com"]
[Date "2020.03.03"]
[Round "1"]
[White "almaguerjm"]
[Black "Incognito_Knight"]
[Result "0-1"]
[WhiteElo "2316"]
[BlackElo "2660"]
[TimeControl "180+1"]
[EndTime "13:03:13 PST"]
[Termination "Incognito_Knight won by resignation"]

1. d4 {[%clk 0:02:55.9]} 1... d5 {[%clk 0:02:59.9]} 2. Nc3 {[%clk 0:02:55.5]}
2... Nf6 {[%clk 0:02:59.4]} 3. Bf4 {[%clk 0:02:55.7]} 3... a6 {[%clk 0:02:59.4]}
4. e3 {[%clk 0:02:54.8]} 4... e6 {[%clk 0:02:59.8]} 5. Bd3 {[%clk 0:02:54.7]}
5... b5 {[%clk 0:02:59.4]} 6. Nge2 {[%clk 0:02:53.9]} 6... Bb7 {[%clk
0:02:58.7]} 7. Qd2 {[%clk 0:02:50.6]} 7... c5 {[%clk 0:02:58.7]} 8. dxc5 {[%clk
0:02:50.6]} 8... Bxc5 {[%clk 0:02:59.6]} 9. O-O-O {[%clk 0:02:49.8]} 9... Nbd7
{[%clk 0:02:56.9]} 10. g4 {[%clk 0:02:48.3]} 10... Nb6 {[%clk 0:02:44.5]} 11. g5
{[%clk 0:02:41.1]} 11... Nfd7 {[%clk 0:02:44.4]} 12. h4 {[%clk 0:02:34.9]} 12...
e5 {[%clk 0:02:38]} 13. h5 {[%clk 0:02:26.8]} 13... b4 {[%clk 0:02:28.9]} 14.
Nb1 {[%clk 0:02:23.2]} 14... exf4 {[%clk 0:02:26.5]} 15. exf4 {[%clk 0:02:21.7]}
15... Qc7 {[%clk 0:02:19.5]} 16. h6 {[%clk 0:02:19.2]} 16... g6 {[%clk
0:02:17.5]} 17. f5 {[%clk 0:02:18.6]} 17... O-O-O {[%clk 0:02:14.5]} 18. fxg6
{[%clk 0:02:06]} 18... fxg6 {[%clk 0:02:15.4]} 19. Rh4 {[%clk 0:02:02.8]} 19...
Rhe8 {[%clk 0:02:09.9]} 20. c3 {[%clk 0:01:57.7]} 20... Bxf2 {[%clk 0:02:06.6]}
21. Kc2 {[%clk 0:01:43]} 21... Bxh4 {[%clk 0:02:04.9]} 0-1

[Event "*** Titled Tuesday Blitz"]
[Site "Chess.com"]
[Date "2020.03.03"]
[Round "1"]
[White "MITerryble"]
[Black "Entilza"]
[Result "1-0"]
[WhiteElo "2917"]
[BlackElo "2489"]
[TimeControl "180+1"]
[EndTime "13:03:15 PST"]
[Termination "MITerryble won by resignation"]

1. d4 {[%clk 0:03:00.9]} 1... Nf6 {[%clk 0:02:38.8]} 2. Bg5 {[%clk 0:03:00.3]}
2... e6 {[%clk 0:02:36.7]} 3. e4 {[%clk 0:03:00]} 3... h6 {[%clk 0:02:35.3]} 4.
Bxf6 {[%clk 0:02:59.7]} 4... Qxf6 {[%clk 0:02:36.2]} 5. c3 {[%clk 0:03:00.3]}
5... c5 {[%clk 0:02:35.5]} 6. Nf3 {[%clk 0:02:53.3]} 6... g5 {[%clk 0:02:33.9]}
7. e5 {[%clk 0:02:52.6]} 7... Qe7 {[%clk 0:02:33.6]} 8. Nbd2 {[%clk 0:02:51.1]}
8... d5 {[%clk 0:02:27.8]} 9. exd6 {[%clk 0:02:47.8]} 9... Qxd6 {[%clk
0:02:25.8]} 10. Ne4 {[%clk 0:02:48.2]} 10... Qc7 {[%clk 0:02:23.4]} 11. Bb5+
{[%clk 0:02:38]} 11... Bd7 {[%clk 0:02:15.6]} 12. Nf6+ {[%clk 0:02:36.1]} 12...
Ke7 {[%clk 0:02:15.4]} 13. Nxd7 {[%clk 0:02:35.8]} 13... Nxd7 {[%clk 0:02:14.7]}
14. O-O {[%clk 0:02:36.1]} 14... Bg7 {[%clk 0:02:12.9]} 15. d5 {[%clk
0:02:36.1]} 15... exd5 {[%clk 0:01:57]} 16. Qxd5 {[%clk 0:02:33]} 16... Nf6
{[%clk 0:01:56.3]} 17. Qf5 {[%clk 0:02:23.9]} 17... Rhd8 {[%clk 0:01:50.8]} 18.
Bc4 {[%clk 0:02:21.5]} 18... Kf8 {[%clk 0:01:50.5]} 19. Ne5 {[%clk 0:02:20.5]}
19... Qc8 {[%clk 0:01:44.9]} 20. Qf3 {[%clk 0:02:17.7]} 20... a6 {[%clk
0:01:38.6]} 21. Nxf7 {[%clk 0:02:14.3]} 21... Rd7 {[%clk 0:01:34.3]} 22. Be6
{[%clk 0:02:12.2]} 1-0

[Event "*** Titled Tuesday Blitz"]
[Site "Chess.com"]
[Date "2020.03.03"]
[Round "1"]
[White "VALPARAISO37"]
[Black "Art_Vandelay1980"]
[Result "0-1"]
[WhiteElo "2410"]
[BlackElo "2764"]
[TimeControl "180+1"]
[EndTime "13:03:26 PST"]
[Termination "Art_Vandelay1980 won by checkmate"]

1. d4 {[%clk 0:02:59.1]} 1... d5 {[%clk 0:02:58.5]} 2. c4 {[%clk 0:02:58.2]}
2... dxc4 {[%clk 0:02:56]} 3. e3 {[%clk 0:02:57.8]} 3... e5 {[%clk 0:02:50.4]}
4. Bxc4 {[%clk 0:02:57.6]} 4... exd4 {[%clk 0:02:50.8]} 5. exd4 {[%clk
0:02:57.8]} 5... Bd6 {[%clk 0:02:51.1]} 6. Nf3 {[%clk 0:02:56.5]} 6... Nf6
{[%clk 0:02:51.5]} 7. h3 {[%clk 0:02:56.2]} 7... O-O {[%clk 0:02:51.2]} 8. O-O
{[%clk 0:02:56.2]} 8... h6 {[%clk 0:02:51]} 9. Qc2 {[%clk 0:02:54.1]} 9... Nc6
{[%clk 0:02:50.6]} 10. a3 {[%clk 0:02:49.3]} 10... Be6 {[%clk 0:02:40.1]} 11.
Bxe6 {[%clk 0:02:44.8]} 11... fxe6 {[%clk 0:02:41]} 12. Re1 {[%clk 0:02:43.5]}
12... Nd5 {[%clk 0:02:35.7]} 13. Bxh6 {[%clk 0:02:35.9]} 13... Rxf3 {[%clk
0:02:31.2]} 14. gxf3 {[%clk 0:02:34.3]} 14... Qf6 {[%clk 0:02:23.9]} 15. Be3
{[%clk 0:02:17.6]} 15... Qxf3 {[%clk 0:02:10.8]} 16. Qg6 {[%clk 0:02:17.5]}
16... Qxh3 {[%clk 0:02:06.9]} 17. Nd2 {[%clk 0:01:52.9]} 17... Bh2+ {[%clk
0:01:57]} 18. Kh1 {[%clk 0:01:52.7]} 18... Nxe3 {[%clk 0:01:48]} 19. fxe3 {[%clk
0:01:47.6]} 19... Bg3+ {[%clk 0:01:46.6]} 20. Kg1 {[%clk 0:01:43.9]} 20... Qh2+
{[%clk 0:01:46.5]} 21. Kf1 {[%clk 0:01:43.9]} 21... Qf2# {[%clk 0:01:45.9]} 0-1

[Event "*** Titled Tuesday Blitz"]
[Site "Chess.com"]
[Date "2020.03.03"]
[Round "1"]
[White "reigningmvp"]
[Black "EugeneRougon"]
[Result "0-1"]
[WhiteElo "2330"]
[BlackElo "2692"]
[TimeControl "180+1"]
[EndTime "13:03:52 PST"]
[Termination "EugeneRougon won by resignation"]

1. e4 {[%clk 0:02:59.7]} 1... e6 {[%clk 0:02:59.9]} 2. d3 {[%clk 0:02:50.4]}
2... d5 {[%clk 0:02:59.6]} 3. Nd2 {[%clk 0:02:51.1]} 3... c5 {[%clk 0:02:59.5]}
4. Ngf3 {[%clk 0:02:51.7]} 4... Nc6 {[%clk 0:02:59.7]} 5. g3 {[%clk 0:02:52.3]}
5... Nf6 {[%clk 0:02:59.4]} 6. Bg2 {[%clk 0:02:52.8]} 6... g6 {[%clk 0:03:00]}
7. O-O {[%clk 0:02:51.2]} 7... Bg7 {[%clk 0:03:00.2]} 8. c3 {[%clk 0:02:40]}
8... O-O {[%clk 0:02:48.6]} 9. e5 {[%clk 0:02:39.5]} 9... Nd7 {[%clk 0:02:48.5]}
10. d4 {[%clk 0:02:40.2]} 10... b6 {[%clk 0:02:40.2]} 11. Re1 {[%clk 0:02:39.1]}
11... a5 {[%clk 0:02:40.1]} 12. a4 {[%clk 0:02:36.6]} 12... Ba6 {[%clk 0:02:30]}
13. Nb1 {[%clk 0:02:35.6]} 13... h6 {[%clk 0:02:22.4]} 14. Na3 {[%clk
0:02:34.8]} 14... f6 {[%clk 0:02:20.7]} 15. exf6 {[%clk 0:02:33.5]} 15... Qxf6
{[%clk 0:02:21.6]} 16. Be3 {[%clk 0:02:29]} 16... g5 {[%clk 0:02:06.9]} 17. h3
{[%clk 0:02:21.7]} 17... Rad8 {[%clk 0:01:56.1]} 18. Nb5 {[%clk 0:02:21.1]}
18... Bb7 {[%clk 0:01:32.9]} 19. Nd6 {[%clk 0:02:14.6]} 19... Ba8 {[%clk
0:01:30.9]} 20. Qd3 {[%clk 0:02:08.2]} 20... e5 {[%clk 0:01:21.6]} 21. dxe5
{[%clk 0:02:06.1]} 21... Ncxe5 {[%clk 0:01:21.2]} 22. Nxe5 {[%clk 0:02:01.8]}
22... Nxe5 {[%clk 0:01:21.4]} 23. Bxd5+ {[%clk 0:02:02.2]} 23... Bxd5 {[%clk
0:01:19.1]} 24. Qxd5+ {[%clk 0:02:02.2]} 24... Kh8 {[%clk 0:01:19.7]} 25. Rad1
{[%clk 0:02:01.9]} 25... Nf3+ {[%clk 0:01:18.9]} 0-1

[Event "*** Titled Tuesday Blitz"]
[Site "Chess.com"]
[Date "2020.03.03"]
[Round "1"]
[White "SubrotaBiswas"]
[Black "platy3"]
[Result "0-1"]
[WhiteElo "2472"]
[BlackElo "2852"]
[TimeControl "180+1"]
[EndTime "13:03:55 PST"]
[Termination "platy3 won by resignation"]

1. e4 {[%clk 0:03:00.1]} 1... e5 {[%clk 0:02:59.1]} 2. Nf3 {[%clk 0:03:00.3]}
2... Nc6 {[%clk 0:02:58.9]} 3. d4 {[%clk 0:03:00.6]} 3... exd4 {[%clk
0:02:58.3]} 4. Nxd4 {[%clk 0:03:01.5]} 4... Qf6 {[%clk 0:02:58.5]} 5. Nxc6
{[%clk 0:02:58.9]} 5... Bc5 {[%clk 0:02:57.7]} 6. Qf3 {[%clk 0:02:58.1]} 6...
Qxf3 {[%clk 0:02:56]} 7. gxf3 {[%clk 0:02:59]} 7... dxc6 {[%clk 0:02:56.7]} 8.
Be3 {[%clk 0:02:59.1]} 8... Bxe3 {[%clk 0:02:56.1]} 9. fxe3 {[%clk 0:03:00]}
9... Ne7 {[%clk 0:02:56.7]} 10. Nd2 {[%clk 0:03:00.3]} 10... f5 {[%clk
0:02:56.3]} 11. e5 {[%clk 0:02:58.4]} 11... Be6 {[%clk 0:02:54.6]} 12. Bc4
{[%clk 0:02:57.7]} 12... Bxc4 {[%clk 0:02:52.4]} 13. Nxc4 {[%clk 0:02:58.6]}
13... Kf7 {[%clk 0:02:53]} 14. Rd1 {[%clk 0:02:56.1]} 14... Ke6 {[%clk
0:02:52.8]} 15. f4 {[%clk 0:02:54.2]} 15... b6 {[%clk 0:02:48.1]} 16. Ke2 {[%clk
0:02:52.2]} 16... a5 {[%clk 0:02:43.7]} 17. Nd2 {[%clk 0:02:52.1]} 17... c5
{[%clk 0:02:38.4]} 18. Nf3 {[%clk 0:02:51.8]} 18... h6 {[%clk 0:02:38.3]} 19.
Rhg1 {[%clk 0:02:52.2]} 19... g6 {[%clk 0:02:38.4]} 20. h4 {[%clk 0:02:48.2]}
20... Rhg8 {[%clk 0:02:33.8]} 21. Rh1 {[%clk 0:02:42.6]} 21... a4 {[%clk
0:02:29.8]} 22. Rd2 {[%clk 0:02:41.5]} 22... a3 {[%clk 0:02:29.3]} 23. b3 {[%clk
0:02:41.7]} 23... Nd5 {[%clk 0:02:27.4]} 24. h5 {[%clk 0:02:28.8]} 24... Nc3+
{[%clk 0:02:27.3]} 25. Kf2 {[%clk 0:02:28.7]} 25... Ne4+ {[%clk 0:02:27]} 26.
Ke2 {[%clk 0:02:27.7]} 26... Ng3+ {[%clk 0:02:26.2]} 27. Kf2 {[%clk 0:02:24.6]}
27... Nxh1+ {[%clk 0:02:26.2]} 28. Kg2 {[%clk 0:02:25]} 28... gxh5+ {[%clk
0:02:24.8]} 29. Kxh1 {[%clk 0:02:25.4]} 29... Rad8 {[%clk 0:02:25.4]} 30. Re2
{[%clk 0:02:13.2]} 30... Rg3 {[%clk 0:02:23.3]} 31. Rf2 {[%clk 0:02:11.4]} 31...
Rd1+ {[%clk 0:02:17.6]} 32. Kh2 {[%clk 0:02:10.7]} 32... Rg4 {[%clk 0:02:18]}
33. c4 {[%clk 0:02:09.7]} 33... Rb1 {[%clk 0:02:17]} 34. Kh3 {[%clk 0:02:04.3]}
34... Rb2 {[%clk 0:02:16.8]} 35. Rf1 {[%clk 0:02:04.4]} 35... Rxa2 {[%clk
0:02:14.1]} 36. Rd1 {[%clk 0:02:04.6]} 36... Rb2 {[%clk 0:02:13.4]} 37. Rd8
{[%clk 0:02:04]} 37... Rxb3 {[%clk 0:02:12.4]} 38. Re8+ {[%clk 0:02:00.5]} 38...
Kd7 {[%clk 0:02:11]} 0-1

[Event "*** Titled Tuesday Blitz"]
[Site "Chess.com"]
[Date "2020.03.03"]
[Round "1"]
[White "ChessBitl"]
[Black "Lovkov_Roman"]
[Result "0-1"]
[WhiteElo "2328"]
[BlackElo "2689"]
[TimeControl "180+1"]
[EndTime "13:04:08 PST"]
[Termination "Lovkov_Roman won by checkmate"]

1. e4 {[%clk 0:02:51.8]} 1... c6 {[%clk 0:02:59.3]} 2. d4 {[%clk 0:02:51.2]}
2... d5 {[%clk 0:02:59.3]} 3. Nd2 {[%clk 0:02:51.7]} 3... dxe4 {[%clk
0:02:57.7]} 4. Nxe4 {[%clk 0:02:52.2]} 4... Nf6 {[%clk 0:02:57.1]} 5. Nxf6+
{[%clk 0:02:52.3]} 5... exf6 {[%clk 0:02:57.8]} 6. Bc4 {[%clk 0:02:50.3]} 6...
Bd6 {[%clk 0:02:57.5]} 7. Qh5 {[%clk 0:02:48.5]} 7... O-O {[%clk 0:02:54.2]} 8.
Ne2 {[%clk 0:02:48.4]} 8... Be6 {[%clk 0:02:42.3]} 9. Bd3 {[%clk 0:02:46.9]}
9... g6 {[%clk 0:02:42]} 10. Qf3 {[%clk 0:02:46.8]} 10... Re8 {[%clk 0:02:38.8]}
11. c4 {[%clk 0:02:35.2]} 11... f5 {[%clk 0:02:35.7]} 12. Be3 {[%clk 0:02:29]}
12... Na6 {[%clk 0:02:33.5]} 13. O-O-O {[%clk 0:02:23.9]} 13... Nb4 {[%clk
0:02:30.1]} 14. Bb1 {[%clk 0:02:23.2]} 14... Bxc4 {[%clk 0:02:27.9]} 15. a3
{[%clk 0:02:15.2]} 15... Nd5 {[%clk 0:02:17.9]} 16. Nf4 {[%clk 0:02:06]} 16...
Qa5 {[%clk 0:02:00.4]} 17. h4 {[%clk 0:01:43.8]} 17... Bxa3 {[%clk 0:01:54.6]}
18. Nxd5 {[%clk 0:01:23.3]} 18... Bxd5 {[%clk 0:01:49]} 19. Qe2 {[%clk
0:01:19.8]} 19... Qc3+ {[%clk 0:01:46.3]} 20. Bc2 {[%clk 0:01:11.6]} 20... Qxb2+
{[%clk 0:01:44.1]} 21. Kd2 {[%clk 0:01:11.9]} 21... Bb4+ {[%clk 0:01:43.9]} 22.
Kd3 {[%clk 0:01:12.2]} 22... Qc3# {[%clk 0:01:42.7]} 0-1

[Event "*** Titled Tuesday Blitz"]
[Site "Chess.com"]
[Date "2020.03.03"]
[Round "1"]
[White "albi1999"]
[Black "mohssenbinaddi"]
[Result "1-0"]
[WhiteElo "2593"]
[BlackElo "2176"]
[TimeControl "180+1"]
[EndTime "13:04:47 PST"]
[Termination "albi1999 won by resignation"]

1. d4 {[%clk 0:02:57.5]} 1... Nf6 {[%clk 0:02:51.6]} 2. c4 {[%clk 0:02:56.8]}
2... g6 {[%clk 0:02:49.9]} 3. g3 {[%clk 0:02:55.8]} 3... d5 {[%clk 0:02:47.7]}
4. cxd5 {[%clk 0:02:55.4]} 4... Qxd5 {[%clk 0:02:43.4]} 5. Nf3 {[%clk
0:02:55.3]} 5... Nc6 {[%clk 0:02:42.7]} 6. Nc3 {[%clk 0:02:54.2]} 6... Qh5
{[%clk 0:02:42]} 7. d5 {[%clk 0:02:53.1]} 7... Ne5 {[%clk 0:02:38.8]} 8. Bg2
{[%clk 0:02:48.6]} 8... Nxf3+ {[%clk 0:02:36.9]} 9. Bxf3 {[%clk 0:02:49.5]} 9...
Bg4 {[%clk 0:02:35.3]} 10. Qa4+ {[%clk 0:02:48.8]} 10... Bd7 {[%clk 0:02:19.9]}
11. Qb3 {[%clk 0:02:46]} 11... Qh3 {[%clk 0:02:06.4]} 12. Qxb7 {[%clk
0:02:44.6]} 12... Rc8 {[%clk 0:02:03.1]} 13. Nb5 {[%clk 0:02:40.8]} 13... Bg7
{[%clk 0:01:42.2]} 14. Nxc7+ {[%clk 0:02:39.4]} 14... Rxc7 {[%clk 0:01:40.3]}
15. Qxc7 {[%clk 0:02:38.5]} 15... O-O {[%clk 0:01:40.6]} 16. Qf4 {[%clk
0:02:34.8]} 16... Ng4 {[%clk 0:01:23.9]} 17. Qg5 {[%clk 0:02:17]} 17... Bf6
{[%clk 0:01:17]} 18. Qd2 {[%clk 0:02:07.6]} 18... Ne5 {[%clk 0:01:04.6]} 19. Be4
{[%clk 0:02:02.4]} 19... Rc8 {[%clk 0:00:59.5]} 20. Qh6 {[%clk 0:01:59.1]} 20...
Qg4 {[%clk 0:00:54.5]} 21. f3 {[%clk 0:01:55.4]} 1-0

[Event "*** Titled Tuesday Blitz"]
[Site "Chess.com"]
[Date "2020.03.03"]
[Round "1"]
[White "newauto"]
[Black "marcodobrikov"]
[Result "0-1"]
[WhiteElo "2015"]
[BlackElo "2556"]
[TimeControl "180+1"]
[EndTime "13:05:05 PST"]
[Termination "marcodobrikov won on time"]

1. e4 {[%clk 0:02:59.9]} 1... c5 {[%clk 0:02:59.4]} 2. Nf3 {[%clk 0:02:53.9]}
2... d6 {[%clk 0:02:59.9]} 3. Bb5+ {[%clk 0:02:53.7]} 3... Nd7 {[%clk
0:02:58.6]} 4. O-O {[%clk 0:02:52.8]} 4... a6 {[%clk 0:02:59]} 5. Be2 {[%clk
0:02:52]} 5... Ngf6 {[%clk 0:02:58.4]} 6. d3 {[%clk 0:02:50.9]} 6... b5 {[%clk
0:02:55.5]} 7. c3 {[%clk 0:02:49.7]} 7... Bb7 {[%clk 0:02:55.3]} 8. Bg5 {[%clk
0:02:47.9]} 8... e6 {[%clk 0:02:51.3]} 9. Re1 {[%clk 0:02:47.5]} 9... Be7 {[%clk
0:02:51.1]} 10. Nbd2 {[%clk 0:02:47.1]} 10... O-O {[%clk 0:02:51.6]} 11. Nf1
{[%clk 0:02:39]} 11... Qc7 {[%clk 0:02:51.4]} 12. Ng3 {[%clk 0:02:34.8]} 12...
d5 {[%clk 0:02:46.9]} 13. exd5 {[%clk 0:02:27.8]} 13... Nxd5 {[%clk 0:02:44.6]}
14. Bxe7 {[%clk 0:02:18.9]} 14... Nxe7 {[%clk 0:02:45.5]} 15. d4 {[%clk
0:02:13.8]} 15... Nd5 {[%clk 0:02:45.4]} 16. Bf1 {[%clk 0:01:54.8]} 16... Nf4
{[%clk 0:02:43.2]} 17. Ne5 {[%clk 0:01:46]} 17... Nxe5 {[%clk 0:02:41]} 18. dxe5
{[%clk 0:01:45.4]} 18... Rad8 {[%clk 0:02:38.6]} 19. Qg4 {[%clk 0:01:45.1]}
19... Ng6 {[%clk 0:02:34]} 20. f4 {[%clk 0:01:37]} 20... Rd2 {[%clk 0:02:32.4]}
21. h4 {[%clk 0:01:15]} 21... Qc6 {[%clk 0:02:24.9]} 22. Ne4 {[%clk 0:01:10]}
22... Rxb2 {[%clk 0:02:19.7]} 23. h5 {[%clk 0:01:09.7]} 23... Ne7 {[%clk
0:02:19.5]} 24. Qg5 {[%clk 0:00:48.6]} 24... Nf5 {[%clk 0:02:13.3]} 25. Rad1
{[%clk 0:00:35.4]} 25... h6 {[%clk 0:02:11.1]} 26. Qg4 {[%clk 0:00:20.4]} 26...
Rxa2 {[%clk 0:02:11.3]} 27. Re2 {[%clk 0:00:07.7]} 27... Rxe2 {[%clk 0:02:10.3]}
28. Bxe2 {[%clk 0:00:06.2]} 28... Qxe4 {[%clk 0:02:09.9]} 29. Bf3 {[%clk
0:00:05.8]} 29... Qe3+ {[%clk 0:02:09.9]} 0-1

[Event "*** Titled Tuesday Blitz"]
[Site "Chess.com"]
[Date "2020.03.03"]
[Round "1"]
[White "Bongcloudtransvestit"]
[Black "kleinebeer98"]
[Result "0-1"]
[WhiteElo "2354"]
[BlackElo "2708"]
[TimeControl "180+1"]
[EndTime "13:05:08 PST"]
[Termination "kleinebeer98 won by resignation"]

1. d4 {[%clk 0:03:00.4]} 1... Nf6 {[%clk 0:02:58.3]} 2. c4 {[%clk 0:03:00.5]}
2... e6 {[%clk 0:02:57.7]} 3. g3 {[%clk 0:03:00.7]} 3... c5 {[%clk 0:02:56.2]}
4. Nf3 {[%clk 0:03:00.3]} 4... cxd4 {[%clk 0:02:54.9]} 5. Nxd4 {[%clk
0:03:01.2]} 5... Nc6 {[%clk 0:02:52.4]} 6. Bg2 {[%clk 0:03:01.3]} 6... Bc5
{[%clk 0:02:49.2]} 7. Nb3 {[%clk 0:02:57.6]} 7... Be7 {[%clk 0:02:48.2]} 8. O-O
{[%clk 0:02:57.9]} 8... O-O {[%clk 0:02:47.3]} 9. Nc3 {[%clk 0:02:58.2]} 9... d6
{[%clk 0:02:38.8]} 10. Bf4 {[%clk 0:02:45.8]} 10... a6 {[%clk 0:02:26.8]} 11.
Qc2 {[%clk 0:02:40.5]} 11... e5 {[%clk 0:02:20.7]} 12. Bg5 {[%clk 0:02:39.5]}
12... Be6 {[%clk 0:02:20.6]} 13. Bxf6 {[%clk 0:02:38.1]} 13... Bxf6 {[%clk
0:02:20]} 14. Nd5 {[%clk 0:02:38.5]} 14... Rc8 {[%clk 0:02:17]} 15. Qd2 {[%clk
0:02:23.2]} 15... Bg5 {[%clk 0:02:13.1]} 16. e3 {[%clk 0:02:22.8]} 16... Ne7
{[%clk 0:02:05.9]} 17. Rac1 {[%clk 0:02:06.9]} 17... Re8 {[%clk 0:01:39.4]} 18.
Rfd1 {[%clk 0:02:04.1]} 18... Bg4 {[%clk 0:01:39.7]} 19. f3 {[%clk 0:01:59]}
19... Be6 {[%clk 0:01:37.1]} 20. f4 {[%clk 0:01:57.5]} 20... Bh6 {[%clk
0:01:32.6]} 21. Nxe7+ {[%clk 0:01:50.7]} 21... Rxe7 {[%clk 0:01:19.9]} 22. c5
{[%clk 0:01:47]} 22... d5 {[%clk 0:01:09.6]} 23. Bxd5 {[%clk 0:01:39.1]} 23...
Rd7 {[%clk 0:01:09.3]} 24. e4 {[%clk 0:01:35.9]} 24... exf4 {[%clk 0:01:08]} 25.
gxf4 {[%clk 0:01:35.8]} 25... Bxd5 {[%clk 0:01:00.9]} 26. exd5 {[%clk
0:01:35.3]} 26... Qh4 {[%clk 0:01:01.8]} 27. c6 {[%clk 0:01:29.6]} 27... bxc6
{[%clk 0:00:59.2]} 28. Qg2 {[%clk 0:01:25.9]} 28... Bxf4 {[%clk 0:00:55.3]} 29.
Rxc6 {[%clk 0:01:24.8]} 29... Rxc6 {[%clk 0:00:54.7]} 0-1

[Event "*** Titled Tuesday Blitz"]
[Site "Chess.com"]
[Date "2020.03.03"]
[Round "1"]
[White "ural58"]
[Black "Supernotar"]
[Result "0-1"]
[WhiteElo "2421"]
[BlackElo "2792"]
[TimeControl "180+1"]
[EndTime "13:05:09 PST"]
[Termination "Supernotar won by resignation"]

1. e4 {[%clk 0:02:51.8]} 1... c6 {[%clk 0:02:59]} 2. b3 {[%clk 0:02:51.3]} 2...
d5 {[%clk 0:02:53.7]} 3. Qe2 {[%clk 0:02:50.6]} 3... dxe4 {[%clk 0:02:52]} 4.
Nc3 {[%clk 0:02:50.7]} 4... Nf6 {[%clk 0:02:50.4]} 5. Nxe4 {[%clk 0:02:50.8]}
5... Nxe4 {[%clk 0:02:49]} 6. Qxe4 {[%clk 0:02:51.7]} 6... Qd5 {[%clk
0:02:40.3]} 7. Qe3 {[%clk 0:02:51.4]} 7... Qe6 {[%clk 0:02:32.9]} 8. Bb2 {[%clk
0:02:49.4]} 8... Qxe3+ {[%clk 0:02:30.2]} 9. fxe3 {[%clk 0:02:50.3]} 9... Nd7
{[%clk 0:02:25.5]} 10. Nf3 {[%clk 0:02:46.6]} 10... Nf6 {[%clk 0:02:23.4]} 11.
O-O-O {[%clk 0:02:46.1]} 11... g6 {[%clk 0:02:22.9]} 12. Bc4 {[%clk 0:02:42.9]}
12... Bg7 {[%clk 0:02:21.7]} 13. Ne5 {[%clk 0:02:42.8]} 13... O-O {[%clk
0:02:19]} 14. a4 {[%clk 0:02:42.9]} 14... Ng4 {[%clk 0:02:13.4]} 15. Nxf7 {[%clk
0:02:11.6]} 15... Bxb2+ {[%clk 0:02:02.4]} 16. Kxb2 {[%clk 0:02:11.4]} 16...
Rxf7 {[%clk 0:01:52.6]} 17. Rdf1 {[%clk 0:02:10.8]} 17... e6 {[%clk 0:01:48.2]}
18. Rxf7 {[%clk 0:02:08.4]} 18... Kxf7 {[%clk 0:01:47.7]} 19. Rf1+ {[%clk
0:02:09.3]} 19... Ke7 {[%clk 0:01:44.3]} 20. h3 {[%clk 0:02:09.2]} 20... Ne5
{[%clk 0:01:39]} 21. Be2 {[%clk 0:02:08.5]} 21... Bd7 {[%clk 0:01:38.5]} 22. d4
{[%clk 0:02:09.4]} 22... Nf7 {[%clk 0:01:38.7]} 23. c4 {[%clk 0:02:10]} 23...
Rf8 {[%clk 0:01:38.1]} 24. Kc3 {[%clk 0:02:10.9]} 24... Nd6 {[%clk 0:01:37.7]}
25. Rb1 {[%clk 0:02:05.7]} 25... a5 {[%clk 0:01:34.7]} 26. Bf3 {[%clk
0:02:05.5]} 26... Nf5 {[%clk 0:01:25.4]} 27. Kd3 {[%clk 0:02:05.4]} 27... Nh4
{[%clk 0:01:23.8]} 28. Be4 {[%clk 0:02:05.6]} 28... Rf2 {[%clk 0:01:22.2]} 29.
b4 {[%clk 0:02:05.7]} 29... axb4 {[%clk 0:01:19.3]} 30. Rxb4 {[%clk 0:02:05.8]}
30... Bc8 {[%clk 0:01:18]} 31. g3 {[%clk 0:02:05.1]} 31... Nf3 {[%clk
0:01:10.9]} 32. a5 {[%clk 0:02:04.5]} 32... Ne1+ {[%clk 0:01:03.2]} 33. Kc3
{[%clk 0:02:03.8]} 33... Re2 {[%clk 0:01:02.8]} 34. Bh1 {[%clk 0:02:00.2]} 34...
Rxe3+ {[%clk 0:00:57.5]} 35. Kd2 {[%clk 0:02:00.2]} 35... Rxg3 {[%clk
0:00:57.3]} 36. a6 {[%clk 0:01:59.4]} 36... bxa6 {[%clk 0:00:53]} 37. Bxc6
{[%clk 0:01:59.4]} 37... Nf3+ {[%clk 0:00:50.9]} 0-1